[Event "CZE-ch Amateurs 2022"]
[Site "Luhacovice"]
[Date "2022.03.15"]
[Round "5.3"]
[White "Toman, Jan"]
[Black "Jun, Rudolf"]
[Result "1/2-1/2"]
[ECO "E46"]
[WhiteElo "2127"]
[BlackElo "2215"]
[Annotator "ChessBase"]
[PlyCount "54"]
[EventDate "2022.03.12"]
[EventType "swiss"]
[EventCountry "CZE"]
[SourceTitle "playchess.com"]
[Source "ChessBase"]
[SourceQuality "1"]
[TimeControl "5400+30"]

1. d4 {[%emt 0:00:06]} Nf6 {[%emt 0:00:09]} 2. c4 {[%emt 0:00:19]} e6 {[%emt 0:00:08]} 3. Nc3 {[%emt 0:00:15]} Bb4 {[%emt 0:00:16]} 4. e3 {[%emt 0:00:13]} c5 {[%emt 0:01:23]} 5. Nge2 {[%emt 0:01:31]} O-O {[%emt 0:08:54]} 6. a3 {[%emt 0:05:11]} Bxc3+ {[%emt 0:03:03]} 7. Nxc3 {[%emt 0:00:35]} b6 {[%emt 0:01:57]} 8. d5 {[%emt 0:04:08]} d6 {[%emt 0:05:38]} 9. Be2 {[%emt 0:02:26]} e5 {[%emt 0:01:36]} 10. e4 {[%emt 0:08:15]} a6 {[%emt 0:01:40]} 11. O-O {[%emt 0:00:42]} Ne8 {[%emt 0:04:52]} 12. f4 {[%emt 0:04:45]} exf4 {[%emt 0:00:45]} 13. Bxf4 {[%emt 0:01:32]} Nd7 {[%emt 0:00:40]} 14. Qe1 {[%emt 0:04:25]} Ne5 {[%emt 0:04:48]} 15. Qg3 {[%emt 0:02:26]} Qe7 {[%emt 0:02:11]} 16. Rad1 {[%emt 0:09:46]} f6 {[%emt 0:00:28]} 17. b4 {[%emt 0:07:23]} cxb4 {[%emt 0:10:49]} 18. axb4 {[%emt 0:00:09]} Bd7 {[%emt 0:03:30]} 19. Qf2 {[%emt 0:03:40]} g5 {[%emt 0:03:12]} 20. Bd2 {[%emt 0:09:08]} Rc8 {[%emt 0:08:23]} 21. Qxb6 {[%emt 0:12:45]} Nxc4 {[%emt 0:00:07]} 22. Bxc4 {[%emt 0:00:09]} Rxc4 {[%emt 0:00:06]} 23. Qxa6 {[%emt 0:00:32]} Rxb4 {[%emt 0:00:35]} 24. Qa5 {[%emt 0:01:12]} Rc4 {[%emt 0:05:23]} 25. Qa6 {[%emt 0:01:31]} Rb4 {[%emt 0:00:27]} 26. Qa5 {[%emt 0:00:20]} Rc4 {[%emt 0:00:10]} 27. Qa6 {[%emt 0:01:34]} Rb4 {[%emt 0:05:56]} 1/2-1/2

[Event "CZE-ch Amateurs 2022"]
[Site "Luhacovice"]
[Date "2022.03.15"]
[Round "5.4"]
[White "Benes, Miroslav"]
[Black "Kratochvil, Josef"]
[Result "1/2-1/2"]
[ECO "C99"]
[WhiteElo "1929"]
[BlackElo "2200"]
[Annotator "ChessBase"]
[PlyCount "29"]
[EventDate "2022.03.12"]
[EventType "swiss"]
[EventCountry "CZE"]
[SourceTitle "playchess.com"]
[Source "ChessBase"]
[SourceQuality "1"]
[TimeControl "5400+30"]

1. e4 {[%emt 1:31:00]} e5 {[%emt 1:31:00]} 2. Nf3 {[%emt 0:00:30]} Nc6 {[%emt 0:00:30]} 3. Bb5 {[%emt 0:00:30]} a6 {[%emt 0:00:30]} 4. Ba4 {[%emt 0:00:30]} Nf6 {[%emt 0:00:30]} 5. O-O {[%emt 0:00:30]} Be7 {[%emt 0:00:30]} 6. Re1 {[%emt 0:00:30]} b5 {[%emt 0:00:30]} 7. Bb3 {[%emt 0:00:30]} d6 {[%emt 0:00:30]} 8. c3 {[%emt 0:00:30]} O-O {[%emt 0:00:30]} 9. h3 {[%emt 0:00:30]} Na5 {[%emt 0:00:30]} 10. Bc2 {[%emt 0:00:30]} c5 {[%emt 0:00:30]} 11. d4 {[%emt 0:00:30]} Qc7 {[%emt 0:00:30]} 12. Nbd2 {[%emt 0:00:30]} cxd4 {[%emt 0:00:30]} 13. cxd4 {[%emt 0:00:30]} Nc6 {[%emt 0:00:30]} 14. dxe5 {[%emt 0:00:30]} dxe5 {[%emt 0:00:30]} 15. Nf1 {[%emt 0:00:30]} 1/2-1/2

[Event "CZE-ch Amateurs 2022"]
[Site "Luhacovice"]
[Date "2022.03.15"]
[Round "5.5"]
[White "Mudrak, Josef"]
[Black "Slepov, Kyryl"]
[Result "1/2-1/2"]
[ECO "A46"]
[WhiteElo "2219"]
[BlackElo "2064"]
[Annotator "ChessBase"]
[PlyCount "37"]
[EventDate "2022.03.12"]
[EventType "swiss"]
[EventCountry "CZE"]
[SourceTitle "playchess.com"]
[Source "ChessBase"]
[SourceQuality "1"]
[TimeControl "5400+30"]

1. d4 {[%emt 0:00:04]} Nf6 {[%emt 0:00:16]} 2. Nf3 {[%emt 0:00:53]} d5 {[%emt 0:00:18]} 3. g3 {[%emt 0:00:18]} e6 {[%emt 0:00:10]} 4. Bg2 {[%emt 0:00:17]} Be7 {[%emt 0:00:11]} 5. O-O {[%emt 0:00:34]} b5 {[%emt 0:00:47]} 6. Ne5 {[%emt 0:05:51]} Bb7 {[%emt 0:00:25]} 7. Nd3 {[%emt 0:03:30]} Nbd7 {[%emt 0:00:58]} 8. b4 {[%emt 0:02:45]} a5 {[%emt 0:00:41]} 9. c3 {[%emt 0:00:27]} O-O {[%emt 0:00:46]} 10. Nd2 {[%emt 0:03:25]} Ne4 {[%emt 0:02:53]} 11. Qc2 {[%emt 0:01:15]} Nxd2 {[%emt 0:01:11]} 12. Bxd2 {[%emt 0:00:10]} Nb6 {[%emt 0:00:16]} 13. Nc5 {[%emt 0:02:17]} Bc6 {[%emt 0:00:29]} 14. e4 {[%emt 0:10:44]} dxe4 {[%emt 0:02:51]} 15. Nxe4 {[%emt 0:07:00]} Bd5 {[%emt 0:00:48]} 16. h4 {[%emt 0:01:53]} Nc4 {[%emt 0:03:22]} 17. Bg5 {[%emt 0:09:32]} f6 {[%emt 0:02:42]} 18. Bd2 {[%emt 0:01:06]} Ra7 {[%emt 0:01:28]} 19. Rfe1 {[%emt 0:06:01]} 1/2-1/2

[Event "CZE-ch Amateurs 2022"]
[Site "Luhacovice"]
[Date "2022.03.15"]
[Round "5.6"]
[White "Sremanak, Slavomir"]
[Black "Pilch, Roman"]
[Result "1/2-1/2"]
[ECO "A43"]
[WhiteElo "2187"]
[BlackElo "2136"]
[Annotator "ChessBase"]
[PlyCount "76"]
[EventDate "2022.03.12"]
[EventType "swiss"]
[EventCountry "CZE"]
[SourceTitle "playchess.com"]
[Source "ChessBase"]
[SourceQuality "1"]
[TimeControl "5400+30"]

1. d4 {[%emt 0:00:04]} Nf6 {[%emt 0:00:21]} 2. Nc3 {[%emt 0:01:04]} c5 {[%emt 0:02:14]} 3. d5 {[%emt 0:00:11]} d6 {[%emt 0:00:51]} 4. e4 {[%emt 0:00:12]} g6 {[%emt 0:00:30]} 5. h3 {[%emt 0:00:11]} Bg7 {[%emt 0:00:10]} 6. Nf3 {[%emt 0:00:06]} Na6 {[%emt 0:00:57]} 7. Be2 {[%emt 0:00:20]} Nc7 {[%emt 0:00:24]} 8. a4 {[%emt 0:02:33]} O-O {[%emt 0:01:36]} 9. O-O {[%emt 0:00:07]} b6 {[%emt 0:01:21]} 10. Nd2 {[%emt 0:06:42]} Rb8 {[%emt 0:02:02]} 11. f4 {[%emt 0:12:10]} a6 {[%emt 0:08:14]} 12. Nc4 {[%emt 0:06:34]} Bd7 {[%emt 0:01:00]} 13. e5 {[%emt 0:02:02]} Nfe8 {[%emt 0:01:06]} 14. exd6 {[%emt 0:02:03]} exd6 {[%emt 0:02:22]} 15. Ne4 {[%emt 0:05:15]} Bf5 {[%emt 0:03:28]} 16. Ng3 {[%emt 0:00:20]} Bd7 {[%emt 0:00:19]} 17. c3 {[%emt 0:02:58]} b5 {[%emt 0:01:09]} 18. axb5 {[%emt 0:00:22]} axb5 {[%emt 0:00:20]} 19. Ne3 {[%emt 0:00:09]} f5 {[%emt 0:02:25]} 20. c4 {[%emt 0:04:18]} Ra8 {[%emt 0:01:57]} 21. Rb1 {[%emt 0:02:44]} b4 {[%emt 0:00:54]} 22. Bd3 {[%emt 0:02:39]} Qh4 {[%emt 0:03:34]} 23. Ne2 {[%emt 0:09:24]} Nf6 {[%emt 0:01:13]} 24. Qe1 {[%emt 0:02:03]} Qxe1 {[%emt 0:00:53]} 25. Rxe1 {[%emt 0:00:03]} Rfe8 {[%emt 0:00:43]} 26. Kf2 {[%emt 0:06:07]} h5 {[%emt 0:09:04]} 27. Kf3 {[%emt 0:02:20]} Kf7 {[%emt 0:02:12]} 28. Rg1 {[%emt 0:00:20]} Ra2 {[%emt 0:02:47]} 29. g3 {[%emt 0:03:48]} Re7 {[%emt 0:03:13]} 30. Nd1 {[%emt 0:03:25]} Ne4 {[%emt 0:08:51]} 31. Be3 {[%emt 0:00:53]} Ne8 {[%emt 0:00:54]} 32. Nc1 {[%emt 0:01:25]} Ra8 {[%emt 0:00:52]} 33. Nb3 {[%emt 0:06:28]} N8f6 {[%emt 0:01:35]} 34. Nf2 {[%emt 0:02:20]} Ba4 {[%emt 0:02:08]} 35. Nd2 {[%emt 0:00:35]} Nxd2+ {[%emt 0:04:23]} 36. Bxd2 {[%emt 0:00:05]} Bd7 {[%emt 0:00:38]} 37. Rge1 {[%emt 0:02:18]} Rxe1 {[%emt 0:01:50]} 38. Bxe1 {[%emt 0:00:07]} Ra2 {[%emt 0:02:01]} 1/2-1/2

[Event "CZE-ch Amateurs 2022"]
[Site "Luhacovice"]
[Date "2022.03.15"]
[Round "5.7"]
[White "Kapusta, Petr"]
[Black "Buchcar, Tomas"]
[Result "0-1"]
[ECO "B11"]
[WhiteElo "2105"]
[BlackElo "2121"]
[Annotator "ChessBase"]
[PlyCount "112"]
[EventDate "2022.03.12"]
[EventType "swiss"]
[EventCountry "CZE"]
[SourceTitle "playchess.com"]
[Source "ChessBase"]
[SourceQuality "1"]
[TimeControl "5400+30"]

1. e4 {[%emt 0:06:00]} c6 {[%emt 0:00:05]} 2. Nc3 {[%emt 0:00:15]} d5 {[%emt 0:00:25]} 3. Nf3 {[%emt 0:00:11]} Bg4 {[%emt 0:00:06]} 4. h3 {[%emt 0:01:29]} Bxf3 {[%emt 0:00:05]} 5. Qxf3 {[%emt 0:00:10]} e6 {[%emt 0:00:06]} 6. exd5 {[%emt 0:04:34]} cxd5 {[%emt 0:00:06]} 7. Bb5+ {[%emt 0:00:37]} Nc6 {[%emt 0:00:12]} 8. O-O {[%emt 0:00:29]} Nf6 {[%emt 0:00:57]} 9. b3 {[%emt 0:05:00]} Be7 {[%emt 0:01:07]} 10. Bb2 {[%emt 0:01:14]} O-O {[%emt 0:00:13]} 11. Bxc6 {[%emt 0:08:20]} bxc6 {[%emt 0:00:39]} 12. Ne2 {[%emt 0:00:09]} Nd7 {[%emt 0:00:57]} 13. d4 {[%emt 0:15:47]} Qb6 {[%emt 0:02:36]} 14. Nf4 {[%emt 0:01:31]} Bf6 {[%emt 0:04:56]} 15. Rad1 {[%emt 0:01:56]} Qa6 {[%emt 0:04:07]} 16. a4 {[%emt 0:02:09]} g6 {[%emt 0:05:37]} 17. Rfe1 {[%emt 0:06:32]} Bg7 {[%emt 0:00:53]} 18. h4 {[%emt 0:04:14]} Rac8 {[%emt 0:04:57]} 19. h5 {[%emt 0:00:55]} c5 {[%emt 0:00:54]} 20. hxg6 {[%emt 0:02:39]} hxg6 {[%emt 0:00:15]} 21. Qh3 {[%emt 0:01:27]} Rfd8 {[%emt 0:07:55]} 22. Nxe6 {[%emt 0:22:24]} fxe6 {[%emt 0:00:10]} 23. Rxe6 {[%emt 0:00:06]} Rc6 {[%emt 0:00:12]} 24. Re7 {[%emt 0:01:16]} Nf8 {[%emt 0:02:57]} 25. Rxg7+ {[%emt 0:02:56]} Kxg7 {[%emt 0:00:04]} 26. dxc5+ {[%emt 0:00:09]} Rf6 {[%emt 0:01:10]} 27. b4 {[%emt 0:04:41]} Qe6 {[%emt 0:03:40]} 28. Qc3 {[%emt 0:01:20]} Qf5 {[%emt 0:02:27]} 29. Qe3 {[%emt 0:00:58]} Ne6 {[%emt 0:01:22]} 30. Bxf6+ {[%emt 0:01:57]} Qxf6 {[%emt 0:00:10]} 31. Re1 {[%emt 0:00:46]} Re8 {[%emt 0:10:22]} 32. c3 {[%emt 0:00:15]} Nc7 {[%emt 0:01:53]} 33. Qd2 {[%emt 0:00:06]} Rxe1+ {[%emt 0:00:17]} 34. Qxe1 {[%emt 0:00:02]} a6 {[%emt 0:00:23]} 35. Qe3 {[%emt 0:00:47]} Kf7 {[%emt 0:01:29]} 36. Qh3 {[%emt 0:02:02]} Ne6 {[%emt 0:01:04]} 37. c6 {[%emt 0:00:53]} Qf4 {[%emt 0:01:46]} 38. Qd3 {[%emt 0:01:15]} Qc4 {[%emt 0:01:07]} 39. Qf3+ {[%emt 0:01:08]} Ke7 {[%emt 0:00:27]} 40. Qg3 {[%emt 0:00:48]} g5 {[%emt 0:00:23]} 41. b5 {[%emt 0:00:47]} axb5 {[%emt 0:00:11]} 42. axb5 {[%emt 0:00:07]} Qxb5 {[%emt 0:00:52]} 43. c7 {[%emt 0:00:06]} Qb1+ {[%emt 0:00:09]} 44. Kh2 {[%emt 0:00:12]} Qb7 {[%emt 0:00:04]} 45. Qe5 {[%emt 0:00:26]} Qxc7 {[%emt 0:00:10]} 46. Qxc7+ {[%emt 0:00:30]} Nxc7 {[%emt 0:00:04]} 47. Kg3 {[%emt 0:00:05]} Nb5 {[%emt 0:00:08]} 48. Kg4 {[%emt 0:00:07]} Kf6 {[%emt 0:00:13]} 49. f4 {[%emt 0:00:15]} Nxc3 {[%emt 0:02:38]} 50. fxg5+ {[%emt 0:00:07]} Kg6 {[%emt 0:00:07]} 51. Kf4 {[%emt 0:00:28]} d4 {[%emt 0:00:36]} 52. Kf3 {[%emt 0:00:19]} Kxg5 {[%emt 0:00:07]} 53. g4 {[%emt 0:02:18]} Nb5 {[%emt 0:00:31]} 54. Kg3 {[%emt 0:00:18]} Na7 {[%emt 0:00:13]} 55. Kf3 {[%emt 0:00:08]} Nc6 {[%emt 0:00:05]} 56. Kg3 {[%emt 0:00:56]} Ne5 {[%emt 0:00:05]} 0-1

[Event "CZE-ch Amateurs 2022"]
[Site "Luhacovice"]
[Date "2022.03.15"]
[Round "5.8"]
[White "Nemec, Pavel"]
[Black "Tresnak, Filip"]
[Result "1-0"]
[ECO "A43"]
[WhiteElo "2223"]
[BlackElo "1931"]
[Annotator "RC"]
[PlyCount "59"]
[EventDate "2022.03.12"]
[EventType "swiss"]
[EventCountry "CZE"]
[SourceTitle "playchess.com"]
[Source "ChessBase"]
[SourceQuality "1"]
[TimeControl "5400+30"]

1. e4 {[%emt 0:00:04]} e6 {[%emt 0:00:28]} 2. d4 {[%emt 0:00:18]} c5 {[%emt 0:00:08]} 3. d5 {[%emt 0:02:17]} exd5 {[%emt 0:00:07]} 4. exd5 {[%emt 0:00:06]} d6 {[%emt 0:00:05]} 5. Nf3 {[%emt 0:00:39]} Nf6 {[%emt 0:00:26]} 6. Be2 {[%emt 0:00:31]} g6 {[%emt 0:00:11]} 7. O-O {[%emt 0:03:57]} Bg7 {[%emt 0:02:35]} 8. Bb5+ {[%emt 0:00:18]} Bd7 {[%emt 0:01:10]} 9. Re1+ {[%emt 0:00:08]} Kf8 {[%emt 0:00:16]} 10. Bf1 {[%emt 0:02:35]} h6 {[%emt 0:03:50]} 11. Bf4 {[%emt 0:06:20]} Ne8 {[%emt 0:04:07]} 12. Nc3 {[%emt 0:01:05]} Na6 {[%emt 0:03:44]} 13. Nd2 {[%emt 0:09:57]} Bxc3 {[%emt 0:05:11]} 14. bxc3 {[%emt 0:00:03]} Qf6 {[%emt 0:00:34]} 15. Bg3 {[%emt 0:00:59]} Bf5 {[%emt 0:04:34]} 16. Rb1 {[%emt 0:04:22]} Nac7 {[%emt 0:03:05]} 17. Rxb7 {[%emt 0:03:02]} Nxd5 {[%emt 0:00:25]} 18. Bc4 {[%emt 0:06:27]} Ndc7 {[%emt 0:05:17]} 19. Ne4 {[%emt 0:05:50]} Bxe4 {[%emt 0:03:06]} 20. Rxe4 {[%emt 0:00:02]} Rh7 {[%emt 0:03:52]} 21. Rxc7 {[%emt 0:03:55]} Nxc7 {[%emt 0:00:19]} 22. Bxd6+ {[%emt 0:00:07]} Kg8 {[%emt 0:00:47]} 23. Bxc7 {[%emt 0:00:07]} Qxc3 {[%emt 0:03:49]} 24. h3 {[%emt 0:03:30]} Rc8 {[%emt 0:01:39]} 25. Qd7 {[%emt 0:01:13]} Qa1+ {[%emt 0:00:42]} 26. Kh2 {[%emt 0:00:08]} Rf8 {[%emt 0:00:32]} 27. Be5 {[%emt 0:02:07]} Qc1 {[%emt 0:00:45]} 28. Qd6 {[%emt 0:02:00]} Qg5 {[%emt 0:01:09]} 29. Rg4 {[%emt 0:02:24]} Qf5 {[%emt 0:00:28]} 30. Rxg6+ {[%emt 0:00:26]} 1-0

[Event "CZE-ch Amateurs 2022"]
[Site "Luhacovice"]
[Date "2022.03.15"]
[Round "5.10"]
[White "Zabystrzan, Pavel"]
[Black "Novotny, Josef"]
[Result "1-0"]
[ECO "E62"]
[WhiteElo "2162"]
[BlackElo "2033"]
[Annotator "ChessBase"]
[PlyCount "59"]
[EventDate "2022.03.12"]
[EventType "swiss"]
[EventCountry "CZE"]
[SourceTitle "playchess.com"]
[Source "ChessBase"]
[SourceQuality "1"]
[TimeControl "5400+30"]

1. Nf3 {[%emt 0:00:14]} e6 {[%emt 0:00:24]} 2. g3 {[%emt 0:00:22]} d6 {[%emt 0:00:08]} 3. d4 {[%emt 0:00:07]} g6 {[%emt 0:00:13]} 4. Bg2 {[%emt 0:01:32]} Bg7 {[%emt 0:00:24]} 5. c4 {[%emt 0:00:27]} Nc6 {[%emt 0:00:24]} 6. Nc3 {[%emt 0:00:38]} Nf6 {[%emt 0:00:20]} 7. O-O {[%emt 0:00:42]} O-O {[%emt 0:00:20]} 8. e4 {[%emt 0:01:37]} h6 {[%emt 0:01:44]} 9. d5 {[%emt 0:03:19]} Na5 {[%emt 0:06:02]} 10. Qd3 {[%emt 0:02:49]} exd5 {[%emt 0:01:38]} 11. cxd5 {[%emt 0:01:59]} c5 {[%emt 0:01:16]} 12. dxc6 {[%emt 0:01:28]} bxc6 {[%emt 0:01:50]} 13. Rd1 {[%emt 0:04:32]} Ne8 {[%emt 0:02:16]} 14. Be3 {[%emt 0:11:05]} Be6 {[%emt 0:01:09]} 15. b3 {[%emt 0:02:18]} c5 {[%emt 0:03:02]} 16. Nd2 {[%emt 0:13:42]} Rc8 {[%emt 0:03:31]} 17. Rac1 {[%emt 0:00:53]} Nc6 {[%emt 0:21:04]} 18. Nc4 {[%emt 0:01:17]} Bxc4 {[%emt 0:01:40]} 19. Qxc4 {[%emt 0:01:09]} Ne5 {[%emt 0:00:22]} 20. Qe2 {[%emt 0:01:51]} Qa5 {[%emt 0:06:51]} 21. Nd5 {[%emt 0:01:11]} Nc6 {[%emt 0:01:10]} 22. b4 {[%emt 0:02:28]} Qa4 {[%emt 0:06:16]} 23. bxc5 {[%emt 0:03:51]} Kh7 {[%emt 0:00:14]} 24. Qc4 {[%emt 0:09:13]} Qxc4 {[%emt 0:03:20]} 25. Rxc4 {[%emt 0:00:08]} Ne5 {[%emt 0:00:12]} 26. Rcc1 {[%emt 0:03:20]} Ng4 {[%emt 0:00:31]} 27. c6 {[%emt 0:01:27]} Nxe3 {[%emt 0:00:54]} 28. Nxe3 {[%emt 0:00:30]} Bb2 {[%emt 0:01:14]} 29. Rc2 {[%emt 0:01:39]} Ba3 {[%emt 0:00:13]} 30. Bh3 {[%emt 0:01:34]} 1-0

[Event "CZE-ch Amateurs 2022"]
[Site "Luhacovice"]
[Date "2022.03.15"]
[Round "5.11"]
[White "Lukastik, David"]
[Black "Gabriel, Adam"]
[Result "0-1"]
[ECO "A31"]
[WhiteElo "1854"]
[BlackElo "2097"]
[Annotator "ChessBase"]
[PlyCount "70"]
[EventDate "2022.03.12"]
[EventType "swiss"]
[EventCountry "CZE"]
[SourceTitle "playchess.com"]
[Source "ChessBase"]
[SourceQuality "1"]
[TimeControl "5400+30"]

1. d4 {[%emt 0:00:21]} Nf6 {[%emt 0:00:03]} 2. c4 {[%emt 0:00:10]} c5 {[%emt 0:00:32]} 3. Nf3 {[%emt 0:00:52]} cxd4 {[%emt 0:00:08]} 4. Nxd4 {[%emt 0:00:12]} e5 {[%emt 0:00:07]} 5. Nb3 {[%emt 0:04:46]} Nc6 {[%emt 0:01:07]} 6. Nc3 {[%emt 0:00:37]} d6 {[%emt 0:01:48]} 7. Nd5 {[%emt 0:03:46]} Nxd5 {[%emt 0:05:53]} 8. cxd5 {[%emt 0:00:10]} Ne7 {[%emt 0:04:47]} 9. e4 {[%emt 0:00:43]} Bd7 {[%emt 0:07:25]} 10. f4 {[%emt 0:09:26]} exf4 {[%emt 0:01:20]} 11. Bxf4 {[%emt 0:00:11]} Ng6 {[%emt 0:00:06]} 12. Bg3 {[%emt 0:04:42]} Be7 {[%emt 0:04:32]} 13. Be2 {[%emt 0:06:19]} Bh4 {[%emt 0:00:23]} 14. O-O {[%emt 0:04:02]} Bxg3 {[%emt 0:02:21]} 15. hxg3 {[%emt 0:00:30]} Qg5 {[%emt 0:01:23]} 16. Kh2 {[%emt 0:02:37]} Ne5 {[%emt 0:13:11]} 17. Qd2 {[%emt 0:03:11]} Qxd2 {[%emt 0:14:37]} 18. Nxd2 {[%emt 0:00:17]} Rc8 {[%emt 0:00:17]} 19. Rac1 {[%emt 0:00:37]} Ke7 {[%emt 0:00:12]} 20. Nc4 {[%emt 0:17:06]} Nxc4 {[%emt 0:01:08]} 21. Bxc4 {[%emt 0:05:03]} Rc5 {[%emt 0:01:27]} 22. b4 {[%emt 0:01:38]} Rc7 {[%emt 0:00:07]} 23. Bb3 {[%emt 0:07:35]} Rxc1 {[%emt 0:04:29]} 24. Rxc1 {[%emt 0:00:03]} Rc8 {[%emt 0:00:05]} 25. Rxc8 {[%emt 0:01:45]} Bxc8 {[%emt 0:00:08]} 26. Kg1 {[%emt 0:00:21]} Kf6 {[%emt 0:00:52]} 27. Kf2 {[%emt 0:00:08]} Ke5 {[%emt 0:00:06]} 28. Ke3 {[%emt 0:00:07]} f5 {[%emt 0:00:07]} 29. Bc2 {[%emt 0:00:21]} h6 {[%emt 0:01:26]} 30. a4 {[%emt 0:02:49]} fxe4 {[%emt 0:02:09]} 31. Bxe4 {[%emt 0:00:12]} Bf5 {[%emt 0:00:09]} 32. Bxf5 {[%emt 0:02:38]} Kxf5 {[%emt 0:00:08]} 33. Kd4 {[%emt 0:00:40]} Kg4 {[%emt 0:00:27]} 34. Ke4 {[%emt 0:00:09]} g6 {[%emt 0:00:29]} 35. a5 {[%emt 0:00:39]} a6 {[%emt 0:01:14]} 0-1

[Event "CZE-ch Amateurs 2022"]
[Site "Luhacovice"]
[Date "2022.03.15"]
[Round "5.12"]
[White "Kupsa, Matej"]
[Black "Vlachopulos, Georgis"]
[Result "1/2-1/2"]
[ECO "A84"]
[WhiteElo "2097"]
[BlackElo "1898"]
[Annotator "ChessBase"]
[PlyCount "71"]
[EventDate "2022.03.12"]
[EventType "swiss"]
[EventCountry "CZE"]
[SourceTitle "playchess.com"]
[Source "ChessBase"]
[SourceQuality "1"]
[TimeControl "5400+30"]

1. d4 {[%emt 0:00:05]} f5 {[%emt 0:00:17]} 2. c4 {[%emt 0:07:48]} d5 {[%emt 0:03:02]} 3. Nf3 {[%emt 0:04:11]} e6 {[%emt 0:00:30]} 4. h3 {[%emt 0:01:07]} Nf6 {[%emt 0:00:28]} 5. g4 {[%emt 0:00:35]} c6 {[%emt 0:00:40]} 6. Nc3 {[%emt 0:01:32]} Bb4 {[%emt 0:03:04]} 7. Qb3 {[%emt 0:03:12]} Bxc3+ {[%emt 0:01:03]} 8. bxc3 {[%emt 0:00:11]} Ne4 {[%emt 0:00:14]} 9. Ba3 {[%emt 0:02:32]} Qf6 {[%emt 0:04:19]} 10. Rg1 {[%emt 0:17:17]} fxg4 {[%emt 0:04:37]} 11. hxg4 {[%emt 0:06:52]} g5 {[%emt 0:00:53]} 12. Rg2 {[%emt 0:14:32]} Nd7 {[%emt 0:00:19]} 13. Nd2 {[%emt 0:02:46]} Nxd2 {[%emt 0:02:46]} 14. Kxd2 {[%emt 0:00:10]} Nb6 {[%emt 0:02:35]} 15. e3 {[%emt 0:02:31]} h5 {[%emt 0:01:54]} 16. Bd6 {[%emt 0:04:09]} dxc4 {[%emt 0:06:13]} 17. Qd1 {[%emt 0:02:22]} Qg6 {[%emt 0:04:05]} 18. Be5 {[%emt 0:02:17]} Rh7 {[%emt 0:05:18]} 19. gxh5 {[%emt 0:00:11]} Rxh5 {[%emt 0:01:31]} 20. Be2 {[%emt 0:00:10]} Rh4 {[%emt 0:02:54]} 21. Qg1 {[%emt 0:00:40]} g4 {[%emt 0:00:36]} 22. Rxg4 {[%emt 0:03:21]} Rxg4 {[%emt 0:01:19]} 23. Qxg4 {[%emt 0:00:05]} Qxg4 {[%emt 0:00:10]} 24. Bxg4 {[%emt 0:00:04]} Bd7 {[%emt 0:00:44]} 25. Bh5+ {[%emt 0:05:52]} Ke7 {[%emt 0:00:19]} 26. Rg1 {[%emt 0:00:41]} Rf8 {[%emt 0:00:24]} 27. f4 {[%emt 0:00:37]} Be8 {[%emt 0:05:32]} 28. Rg7+ {[%emt 0:02:33]} Bf7 {[%emt 0:01:38]} 29. Rh7 {[%emt 0:03:13]} Nd7 {[%emt 0:01:23]} 30. Bg7 {[%emt 0:03:03]} Rg8 {[%emt 0:03:18]} 31. Bh6 {[%emt 0:00:09]} Rg2+ {[%emt 0:02:04]} 32. Ke1 {[%emt 0:00:18]} Rxa2 {[%emt 0:00:31]} 33. Rxf7+ {[%emt 0:01:21]} Kd6 {[%emt 0:01:07]} 34. Bf3 {[%emt 0:04:06]} Rc2 {[%emt 0:03:26]} 35. Bg7 {[%emt 0:00:37]} a5 {[%emt 0:00:10]} 36. Be5+ {[%emt 0:00:10]} 1/2-1/2

[Event "CZE-ch Amateurs 2022"]
[Site "Luhacovice"]
[Date "2022.03.15"]
[Round "5.13"]
[White "Kulhanek, Jachym"]
[Black "Horvath, Tomas"]
[Result "0-1"]
[ECO "C99"]
[WhiteElo "1951"]
[BlackElo "2079"]
[Annotator "ChessBase"]
[PlyCount "104"]
[EventDate "2022.03.12"]
[EventType "swiss"]
[EventCountry "CZE"]
[SourceTitle "playchess.com"]
[Source "ChessBase"]
[SourceQuality "1"]
[TimeControl "5400+30"]

1. e4 {[%emt 0:00:03]} e5 {[%emt 0:00:05]} 2. Nf3 {[%emt 0:00:03]} Nc6 {[%emt 0:00:31]} 3. Bb5 {[%emt 0:00:05]} a6 {[%emt 0:01:49]} 4. Ba4 {[%emt 0:00:06]} Nf6 {[%emt 0:00:04]} 5. O-O {[%emt 0:00:03]} b5 {[%emt 0:00:16]} 6. Bb3 {[%emt 0:00:05]} Be7 {[%emt 0:02:02]} 7. Re1 {[%emt 0:00:22]} O-O {[%emt 0:00:10]} 8. h3 {[%emt 0:00:12]} d6 {[%emt 0:00:17]} 9. c3 {[%emt 0:00:04]} Na5 {[%emt 0:00:27]} 10. Bc2 {[%emt 0:00:05]} c5 {[%emt 0:00:03]} 11. d4 {[%emt 0:00:17]} cxd4 {[%emt 0:00:26]} 12. cxd4 {[%emt 0:00:06]} Qc7 {[%emt 0:00:42]} 13. Nbd2 {[%emt 0:04:01]} Bd7 {[%emt 0:03:50]} 14. Nf1 {[%emt 0:02:17]} Rac8 {[%emt 0:01:05]} 15. Ne3 {[%emt 0:01:25]} Nc6 {[%emt 0:09:31]} 16. d5 {[%emt 0:09:06]} Nb4 {[%emt 0:00:41]} 17. Bb1 {[%emt 0:02:45]} a5 {[%emt 0:00:27]} 18. a3 {[%emt 0:04:58]} Na6 {[%emt 0:07:10]} 19. Bd2 {[%emt 0:04:08]} Nc5 {[%emt 0:02:31]} 20. Nf1 {[%emt 0:04:03]} Na4 {[%emt 0:03:23]} 21. Qb3 {[%emt 0:03:28]} Qc4 {[%emt 0:02:11]} 22. Qa2 {[%emt 0:03:35]} Qxa2 {[%emt 0:03:12]} 23. Rxa2 {[%emt 0:00:34]} Bd8 {[%emt 0:01:24]} 24. b4 {[%emt 0:09:09]} Nc3 {[%emt 0:04:13]} 25. Rb2 {[%emt 0:00:11]} Bb6 {[%emt 0:09:17]} 26. Bd3 {[%emt 0:02:12]} h6 {[%emt 0:04:46]} 27. Rc2 {[%emt 0:06:31]} axb4 {[%emt 0:01:49]} 28. axb4 {[%emt 0:00:55]} Na4 {[%emt 0:05:53]} 29. Rxc8 {[%emt 0:07:21]} Rxc8 {[%emt 0:02:50]} 30. Rc1 {[%emt 0:00:06]} Rxc1 {[%emt 0:00:23]} 31. Bxc1 {[%emt 0:00:06]} Nc3 {[%emt 0:00:06]} 32. Ng3 {[%emt 0:01:02]} Nd1 {[%emt 0:02:00]} 33. Nh1 {[%emt 0:00:23]} g5 {[%emt 0:00:48]} 34. g4 {[%emt 0:01:13]} h5 {[%emt 0:07:18]} 35. Bxg5 {[%emt 0:04:24]} hxg4 {[%emt 0:05:21]} 36. Bxf6 {[%emt 0:02:28]} gxf3 {[%emt 0:00:27]} 37. Be7 {[%emt 0:07:57]} Bc7 {[%emt 0:09:22]} 38. Ng3 {[%emt 0:01:31]} Nc3 {[%emt 0:00:55]} 39. Nh5 {[%emt 0:02:38]} f5 {[%emt 0:01:58]} 40. exf5 {[%emt 0:12:34]} e4 {[%emt 0:01:08]} 41. Bc2 {[%emt 0:00:47]} Bxf5 {[%emt 0:00:40]} 42. Bb3 {[%emt 0:02:02]} Bb6 {[%emt 0:03:53]} 43. Bg5 {[%emt 0:01:24]} Ne2+ {[%emt 0:01:02]} 44. Kf1 {[%emt 0:01:04]} Bxh3+ {[%emt 0:01:00]} 45. Ke1 {[%emt 0:00:05]} Bd4 {[%emt 0:03:15]} 46. Nf6+ {[%emt 0:00:12]} Bxf6 {[%emt 0:01:02]} 47. Bxf6 {[%emt 0:00:05]} Nf4 {[%emt 0:00:32]} 48. Bc2 {[%emt 0:01:17]} Bf5 {[%emt 0:01:21]} 49. Bd1 {[%emt 0:03:47]} Nd3+ {[%emt 0:00:30]} 50. Kd2 {[%emt 0:00:49]} Nxf2 {[%emt 0:00:15]} 51. Bxf3 {[%emt 0:00:03]} exf3 {[%emt 0:00:15]} 52. Ke3 {[%emt 0:00:02]} Ng4+ {[%emt 0:00:09]} 0-1